bitfinex/quotes_ETHUSD_20220118
["timestamp","ask_amount","ask_price","bid_price","bid_amount"]
[1642485354968,0.5728,3179.5,3179.0,0.00682108]
[1642485355371,2.68769546,3179.4,3179.0,0.00682108]
[1642485355970,2.68769546,3179.4,3179.1,1.2056292]
[1642485356412,2.68769546,3179.4,3179.2,0.00568423]
[1642485359122,2.68769546,3179.4,3179.3,0.02347801]
[1642485359518,2.68769546,3179.4,3179.3,0.02859382]
[1642485360860,21.11769546,3179.4,3179.3,0.02859382]
[1642485361564,21.24349546,3179.4,3179.3,0.02859382]
[1642485364015,21.24349546,3179.4,3179.3,0.00511581]
[1642485364421,2.81349546,3179.4,3179.3,0.00511581]
[1642485365219,3.26049546,3179.4,3179.3,0.00511581]
[1642485366119,21.69049546,3179.4,3179.3,0.00511581]
[1642485366320,21.56469546,3179.4,3179.3,0.00511581]
[1642485366720,24.75478355,3179.4,3179.3,0.00511581]
[1642485369074,24.88058355,3179.4,3179.3,0.00511581]
[1642485369274,24.88058355,3179.4,3179.2,0.00568423]
[1642485369480,24.75478355,3179.4,3179.2,0.00568423]
[1642485370075,6.32478355,3179.4,3179.2,0.00568423]
[1642485370575,5.87778355,3179.3,3179.2,0.00568423]
[1642485371321,2.68769546,3179.3,3179.2,0.00568423]
[1642485372319,2.68769546,3179.4,3179.2,0.00568423]
[1642485374322,2.68769546,3179.4,3178.9,0.1331895]
[1642485374525,2.68769546,3179.4,3179.0,0.00682108]
[1642485374728,2.68769546,3179.4,3179.1,0.1258]
[1642485375171,2.68769546,3179.4,3179.2,0.00568423]
[1642485376573,2.68769546,3179.4,3179.0,0.00682108]
[1642485378814,2.68769546,3179.4,3179.1,0.02396788]
[1642485379215,2.68769546,3179.4,3179.2,0.00568423]
[1642485383481,2.63769546,3179.4,3179.2,0.00568423]
[1642485383882,1.10491442,3179.5,3179.2,0.00568423]
[1642485384283,1.10491442,3179.5,3178.8,0.13375793]
[1642485384483,1.10491442,3179.5,3178.9,0.0073895]
[1642485389968,19.53491442,3179.5,3178.9,0.0073895]
[1642485390773,19.53491442,3179.5,3178.7,0.00852635]
[1642485390976,19.53491442,3179.5,3178.7,1.59515397]
[1642485391377,19.53491442,3179.5,3178.8,0.00795793]
[1642485395523,1.10491442,3179.5,3178.7,0.00852635]
[1642485396122,1.10491442,3179.5,3178.7,2.87223616]
[1642485396324,1.10491442,3179.5,3178.7,3.17223616]
[1642485396523,1.10491442,3179.5,3178.8,1.00795793]
[1642485396923,1.10491442,3179.5,3178.9,0.0073895]
[1642485399575,1.10491442,3179.5,3178.8,0.00795793]
[1642485400376,1.10491442,3179.5,3178.9,1.58662762]
[1642485400778,1.10491442,3179.5,3179.0,0.00682108]
[1642485401920,1.10491442,3179.5,3179.0,0.13262108]
[1642485402421,1.10491442,3179.5,3179.1,0.00625266]
[1642485403023,1.10491442,3179.5,3179.0,1.5934487]
[1642485403222,1.10491442,3179.5,3179.1,0.00625266]
[1642485404423,2.68752771,3179.4,3179.1,1.59288028]
[1642485404822,2.68752771,3179.4,3179.2,0.00568423]
[1642485405368,2.68752771,3179.4,3179.1,0.00625266]
[1642485406774,1.10491442,3179.5,3179.1,0.00625266]
[1642485407174,1.10491442,3179.5,3179.0,0.00682108]
[1642485407574,1.10491442,3179.5,3178.9,0.0073895]
[1642485407976,1.10491442,3179.5,3178.8,0.00795793]
[1642485408377,3.1,3179.6,3178.8,0.00795793]
[1642485408580,3.1,3179.6,3178.9,0.1258]
[1642485408839,3.1,3179.6,3178.9,2.62066486]
[1642485409037,3.1,3179.6,3179.0,6.39662912]
[1642485409238,3.1,3179.6,3179.1,0.1258]
[1642485409437,3.1,3179.6,3179.1,0.13205266]
[1642485409638,1.15725134,3179.5,3179.2,0.00568423]
[1642485409838,1.15725134,3179.5,3179.3,0.1258]
[1642485410340,1.15725134,3179.5,3179.4,0.00454739]
[1642485410941,1.15725134,3179.5,3179.2,0.00568423]
[1642485411944,1.28305134,3179.5,3179.2,0.00568423]
[1642485412471,2.80023531,3179.4,3179.2,0.00568423]
[1642485412675,3.90417322,3179.5,3179.2,0.00568423]
[1642485413375,3.90417322,3179.5,3178.8,0.00795793]
[1642485413977,3.90417322,3179.5,3179.3,0.0217411]
[1642485414374,1.15725134,3179.5,3179.4,0.00454739]
[1642485414574,4.12644967,3179.5,3179.4,0.00454739]
[1642485416076,6.81409516,3179.5,3179.4,0.00454739]
[1642485416522,3.84489683,3179.5,3179.4,0.00454739]
[1642485418925,3.84489683,3179.5,3179.4,0.02847606]
[1642485419625,6.58831875,3179.5,3179.4,0.02847606]
[1642485421774,6.71411875,3179.5,3179.4,0.02847606]
[1642485422778,9.83389903,3179.5,3179.4,0.02847606]
[1642485423079,9.83389903,3179.5,3178.7,1.58662762]
[1642485423080,5.8,3179.4,3178.7,1.58662762]
[1642485423280,28.71089903,3179.5,3178.5,2.37644766]
[1642485423281,0.01277383,3178.8,3178.5,2.37644766]
[1642485423478,0.01277383,3178.8,3178.5,0.26074766]
[1642485423479,0.5728,3178.7,3178.5,0.26074766]
[1642485423914,0.5728,3178.7,3178.5,4.766e-05]
[1642485424517,0.5728,3178.7,3178.2,3.20611957]
[1642485424921,0.5728,3178.7,3178.3,0.00625265]
[1642485424922,1.42339019,3178.5,3178.3,0.00625265]
[1642485425121,0.447,3178.4,3178.3,0.00625265]
[1642485425322,0.447,3178.4,3177.9,0.00852635]
[1642485425522,0.447,3178.4,3177.8,0.00909477]
[1642485425921,0.447,3178.4,3177.9,0.31024149]
[1642485426123,0.447,3178.4,3177.9,0.61024149]
[1642485426321,2.68764549,3178.3,3178.0,0.00795792]
[1642485427121,0.447,3178.4,3178.0,0.00795792]
[1642485427323,0.447,3178.4,3178.1,0.31024149]
[1642485427774,0.447,3178.4,3178.2,0.00682108]
[1642485428571,2.68838991,3178.3,3178.2,0.00682108]
[1642485429275,2.68838991,3178.3,3177.8,0.00909477]
[1642485429477,2.68838991,3178.3,3177.9,0.1258]
[1642485429876,2.68838991,3178.3,3178.0,0.00795792]
[1642485430278,1.253051,3178.2,3178.0,0.00795792]
[1642485430474,1.253051,3178.2,3177.9,0.00852635]
[1642485430675,1.253051,3178.2,3178.0,0.1258]
[1642485430977,1.253051,3178.2,3178.1,0.0073895]
[1642485431515,1.253051,3178.2,3178.0,0.00795792]
[1642485431716,2.68838991,3178.6,3178.0,0.00795792]
[1642485432018,5.4318327,3178.6,3178.0,0.00795792]
[1642485432219,4.0914,3178.7,3178.0,0.00795792]
[1642485432619,4.0914,3178.7,3178.0,1.00795792]
[1642485432821,1.43955641,3178.3,3178.0,0.00795792]
[1642485433021,1.43955641,3178.3,3178.1,0.0073895]
[1642485433223,1.43955641,3178.3,3178.0,1.00795792]
[1642485433422,1.43955641,3178.3,3178.1,0.0073895]
[1642485434425,4.0914,3178.7,3178.1,0.0073895]
[1642485435174,3.1,3178.3,3178.1,0.0073895]
[1642485435374,3.1,3178.3,3178.1,2.41443243]
[1642485435575,3.1,3178.3,3178.1,3.41443243]
[1642485435778,4.51711003,3178.3,3178.2,0.00682108]
[1642485436376,3.1,3178.3,3178.2,0.00682108]
[1642485437284,3.1,3178.3,3178.1,1.0073895]
[1642485437683,3.1,3178.3,3178.2,0.00682108]
[1642485438484,3.1,3178.3,3178.1,2.41443243]
[1642485438721,3.1,3178.3,3178.1,3.41443243]
[1642485438914,3.1,3178.3,3178.2,0.00682108]
[1642485439116,3.1,3178.3,3178.2,1.00682108]
[1642485440016,3.1,3178.3,3178.2,0.00682108]
[1642485440217,3.1,3178.3,3178.2,1.00682108]
[1642485440516,3.1,3178.3,3178.2,0.00682108]
[1642485440719,3.1,3178.3,3178.2,1.00682108]
[1642485442470,3.1,3178.3,3178.2,0.00682108]
[1642485442870,3.1,3178.3,3178.1,0.0073895]
[1642485443072,5.788517,3178.3,3178.1,0.0073895]
[1642485443871,3.1,3178.3,3178.1,0.0073895]
[1642485444172,3.1,3178.3,3178.2,0.28337086]
[1642485444572,3.1,3178.3,3178.2,0.29019194]
[1642485445277,6.98247377,3178.3,3178.2,1.29019194]
[1642485445475,6.98247377,3178.3,3178.2,0.29019194]
[1642485446325,4.29400065,3178.3,3178.2,0.29019194]
[1642485448323,3.1,3178.3,3178.2,0.29019194]
[1642485450178,0.1258,3179.2,3178.2,0.34606119]
[1642485450474,1.32653333,3179.5,3178.9,1.36547898]
[1642485450873,1.32653333,3179.5,3179.0,0.00227369]
[1642485452176,1.32653333,3179.5,3178.8,0.1258]
[1642485452177,1.32653333,3179.5,3178.9,0.00284211]
[1642485452979,2.68773318,3179.4,3178.9,0.00284211]
[1642485453178,2.68773318,3179.4,3178.9,1.00284211]
[1642485453579,2.68773318,3179.4,3179.0,0.00227369]
[1642485454217,2.68773318,3179.4,3178.9,0.00284211]
[1642485454415,2.68773318,3179.4,3179.0,0.00227369]
[1642485454616,2.68773318,3179.4,3178.8,0.00341054]
[1642485454816,5.78773318,3179.4,3178.8,1.00341054]
[1642485455017,5.78773318,3179.4,3178.8,0.00341054]
[1642485455218,5.78773318,3179.4,3178.9,0.00284211]
[1642485455419,5.78773318,3179.4,3178.7,0.00397896]
[1642485455819,2.68773318,3179.3,3178.7,0.00397896]
[1642485457985,5.46460647,3179.3,3178.6,0.00454738]
[1642485458182,2.68773318,3179.3,3178.6,0.00454738]
[1642485458582,2.68773318,3179.3,3178.4,2.40704293]
[1642485458583,2.68773318,3179.3,3178.5,0.00511581]
[1642485458882,2.68773318,3179.2,3178.5,0.00511581]
[1642485460383,2.68773318,3179.3,3178.5,0.00511581]
[1642485461729,0.1258,3179.2,3178.5,0.00511581]
[1642485463132,2.68773318,3179.1,3178.5,0.00511581]
[1642485463330,2.68773318,3179.1,3178.5,1.00511581]
[1642485463530,2.68773318,3179.1,3178.5,0.00511581]
[1642485464430,2.68773318,3179.3,3178.5,1.00511581]
[1642485464631,2.68773318,3179.3,3178.5,0.00511581]
[1642485464831,2.68773318,3179.3,3178.6,0.00454738]
[1642485465072,5.48754615,3179.3,3178.5,0.00511581]
[1642485465678,2.68773318,3179.2,3178.5,0.00511581]
[1642485468733,2.68773318,3179.2,3178.6,0.1258]
[1642485468922,3.547,3179.4,3178.6,0.1258]
[1642485468923,2.68773318,3179.3,3178.6,0.1258]
[1642485469124,5.55440723,3179.3,3178.7,0.00397896]
[1642485469324,2.68773318,3179.1,3178.7,0.00397896]
[1642485469524,3.42236562,3179.0,3178.7,0.00397896]
[1642485469822,3.42236562,3179.0,3178.6,0.00454738]
[1642485470930,3.42236562,3179.0,3178.5,0.00511581]
[1642485471123,2.68773318,3178.9,3178.5,0.00511581]
[1642485471326,2.77106024,3178.8,3178.5,0.00511581]
[1642485471728,2.68773318,3178.9,3178.5,0.00511581]
[1642485472130,2.68773318,3178.7,3178.5,0.00511581]
[1642485472973,2.68773318,3178.9,3178.5,0.00511581]
[1642485473174,3.13473318,3178.9,3178.5,0.00511581]
[1642485474576,2.68773318,3178.8,3178.5,0.00511581]
[1642485475175,5.78773318,3178.8,3178.5,0.00511581]
[1642485476422,2.68773318,3178.7,3178.5,0.00511581]
[1642485480288,3.1,3178.8,3178.5,0.00511581]
[1642485482187,2.68825048,3178.7,3178.5,0.00511581]
[1642485483492,2.68825048,3178.7,3178.6,0.28368989]
[1642485483922,2.68825048,3178.7,3178.6,0.28823727]
[1642485484925,2.68825048,3178.7,3178.6,0.00454738]
[1642485485326,2.68825048,3178.7,3178.5,0.00511581]
[1642485491925,3.1,3178.8,3178.6,0.28368155]
[1642485492326,3.1,3178.8,3178.7,0.00397896]
[1642485493427,3.1,3178.8,3178.7,0.28766051]
[1642485495777,24.20318953,3178.8,3178.7,0.28766051]
[1642485495974,21.977,3178.8,3178.7,0.28766051]
[1642485496576,21.977,3178.8,3178.7,0.00397896]
[1642485496976,21.977,3178.8,3177.8,0.00909477]
[1642485497179,0.31608842,3178.1,3177.8,0.00909477]
[1642485498078,0.31608842,3178.1,3177.9,0.27305022]
[1642485498578,1.52156776,3178.1,3178.0,0.00795792]
[1642485499433,1.52156776,3178.1,3178.0,0.28100814]
[1642485502485,3.7015315,3178.9,3178.6,1.33558809]
[1642485502683,3.7015315,3178.9,3178.7,0.1258]
[1642485502882,3.7015315,3178.9,3178.7,0.05984821]
[1642485503083,3.7015315,3178.9,3178.8,0.12921054]
[1642485503283,4.85070892,3178.9,3178.8,0.12921054]
[1642485503484,4.85070892,3178.9,3178.8,0.40226076]
[1642485504288,1.14917742,3178.9,3178.8,0.40226076]
[1642485504886,3.5354,3179.5,3178.8,0.40226076]
[1642485505285,3.5354,3179.5,3178.9,0.00284211]
[1642485505889,1.16835876,3179.4,3178.9,0.00284211]
[1642485507439,1.16835876,3179.4,3178.6,0.00454738]
[1642485508642,1.16835876,3179.4,3178.7,0.1258]
[1642485508843,2.68767987,3179.3,3178.7,0.1258]
[1642485509043,2.68767987,3179.3,3178.8,0.24949826]
[1642485509342,2.68767987,3179.3,3178.9,0.00284211]
[1642485511176,2.68767987,3179.3,3178.7,0.00397896]
[1642485511576,2.68767987,3179.3,3178.8,0.00341054]
[1642485511777,2.68767987,3179.3,3178.7,0.00397896]
[1642485512178,2.68767987,3179.3,3178.7,1.30397896]
[1642485512379,2.68767987,3179.3,3178.8,0.24602707]
[1642485512584,2.68767987,3179.3,3178.8,0.24943761]
[1642485512782,2.68767987,3179.3,3178.9,0.00284211]
[1642485514224,2.68767987,3179.3,3178.7,0.00397896]
[1642485515232,2.68767987,3179.3,3178.8,0.24601243]
[1642485515626,2.68767987,3179.3,3178.9,0.00284211]
[1642485516931,2.68767987,3179.3,3178.7,0.00397896]
[1642485522425,2.68767987,3179.3,3178.8,0.24594622]
[1642485522828,2.68767987,3179.3,3178.9,0.00284211]
[1642485523428,5.53892707,3179.3,3178.9,0.00284211]
[1642485524229,5.53892707,3179.3,3178.7,0.00397896]
[1642485524430,5.53892707,3179.3,3178.6,0.00454738]
[1642485524632,0.1258,3179.2,3178.6,0.00454738]
[1642485524832,0.01228017,3179.1,3178.5,0.00511581]
[1642485525077,0.5728,3179.0,3178.5,0.00511581]
[1642485525279,2.96371591,3178.9,3178.5,0.00511581]
[1642485525476,0.5728,3178.8,3178.4,0.00568423]
[1642485525679,2.93006516,3178.7,3178.4,0.00568423]
[1642485525876,0.1258,3178.6,3178.4,0.00568423]
[1642485526483,2.93797308,3178.6,3178.4,0.00568423]
[1642485526683,2.93797308,3178.6,3178.1,0.0073895]
[1642485527284,1.45887879,3178.2,3178.1,0.0073895]
[1642485528388,4.14655866,3178.2,3178.1,0.0073895]
[1642485528584,4.14655866,3178.2,3178.1,0.25341135]
[1642485528826,4.27065313,3178.2,3178.1,0.25341135]
[1642485530030,1.58297326,3178.2,3178.1,0.25341135]
[1642485531033,0.12409447,3178.2,3178.1,0.25341135]
[1642485532333,2.81229432,3178.2,3178.1,0.25341135]
[1642485532981,0.12409447,3178.2,3178.1,0.25341135]
[1642485533979,1.16099909,3178.4,3178.1,0.25341135]
[1642485534379,0.12409447,3178.5,3178.1,0.25341135]
[1642485534380,0.12409447,3178.5,3178.2,0.00682108]
[1642485535381,0.12409447,3178.5,3178.3,0.24602185]
[1642485535783,0.12409447,3178.5,3178.4,0.00568423]
[1642485535983,1.41763752,3178.5,3178.4,0.00568423]
[1642485536626,1.41763752,3178.5,3178.4,0.25170608]
[1642485537829,4.51763752,3178.5,3178.4,0.25170608]
[1642485544029,4.39354305,3178.5,3178.4,0.25170608]
[1642485549484,5.0,3178.4,3178.2,0.00828832]
[1642485549683,5.0,3178.4,3177.9,2.40704293]
[1642485549684,0.447,3178.3,3177.9,2.40704293]
[1642485549884,0.1258,3178.2,3177.9,2.40704293]
[1642485550083,0.447,3178.1,3178.0,0.00227369]
[1642485550284,0.5728,3178.1,3178.0,0.00227369]
[1642485551086,0.5728,3178.1,3177.8,0.00341054]
[1642485551333,0.1258,3178.0,3177.8,0.00341054]
[1642485551530,0.1258,3178.0,3177.1,7.70915798]
[1642485551531,0.447,3177.9,3177.2,1.00682108]
[1642485551731,1.41100533,3177.5,3177.2,1.00682108]
[1642485551934,1.41100533,3177.5,3177.3,0.00625266]
[1642485552736,1.41100533,3177.5,3177.4,2.41971703]
[1642485553135,1.41100533,3177.5,3177.4,2.42540127]
[1642485553737,4.09920505,3177.5,3177.4,0.00568424]
[1642485554136,4.09920505,3177.5,3177.1,0.00738951]
[1642485554539,4.09920505,3177.5,3177.1,1.00738951]
[1642485554992,4.09920505,3177.5,3177.2,0.00682108]
[1642485555185,4.09920505,3177.5,3177.2,0.13262108]
[1642485555586,4.09920505,3177.5,3177.3,0.00625266]
[1642485555988,1.41100533,3177.5,3177.3,0.00625266]
[1642485556186,1.41100533,3177.5,3177.2,0.00682108]
[1642485557687,1.41100533,3177.5,3177.2,1.00682108]
[1642485558087,1.41100533,3177.5,3177.1,3.63191957]
[1642485558088,2.42760533,3177.5,3177.3,0.00625266]
[1642485558290,5.97460533,3177.5,3177.3,0.00625266]
[1642485558489,5.97460533,3177.5,3177.2,0.00682108]
[1642485558490,3.1758,3177.4,3177.2,0.00682108]
[1642485558734,3.747,3177.3,3177.2,0.00682108]
[1642485558934,0.447,3177.3,3177.2,0.00682108]
[1642485560140,18.877,3177.3,3177.2,0.00682108]
[1642485560941,21.56612558,3177.3,3177.2,0.00682108]
[1642485561139,21.69192558,3177.3,3177.2,0.00682108]
[1642485561344,21.69192558,3177.3,3177.2,0.01352631]
[1642485561538,21.69192558,3177.3,3177.2,0.00670523]
[1642485561740,21.69192558,3177.3,3177.2,0.01352631]
[1642485564390,25.6839067,3177.3,3177.2,0.01352631]
[1642485565489,27.29627234,3177.3,3177.2,0.01352631]
[1642485566531,27.29627234,3177.3,3177.2,0.00682108]
[1642485567335,25.6839067,3177.3,3177.2,0.00682108]
[1642485567735,25.6839067,3177.3,3177.1,0.00659378]
[1642485567736,5.75,3177.2,3177.1,0.00659378]
[1642485567935,25.9535,3177.2,3177.1,0.00659378]
[1642485568135,29.9371,3177.2,3177.1,0.00659378]
[1642485568338,24.50573051,3177.2,3177.1,0.00659378]
[1642485569539,31.18683721,3177.2,3177.1,0.00659378]
[1642485570304,32.79920285,3177.2,3177.1,0.00659378]
[1642485570502,32.79920285,3177.2,3175.7,0.1258]
[1642485570702,0.1259,3177.1,3175.6,0.1259]
[1642485570904,18.43,3176.9,3175.8,0.00795793]
[1642485571202,0.1259,3177.1,3175.9,0.1259]
[1642485571203,18.877,3176.8,3175.9,0.1259]
[1642485571405,0.447,3176.7,3175.9,0.1259]
[1642485571702,1.26369074,3176.2,3176.0,0.00682108]
[1642485572305,5.2404,3176.7,3176.0,0.00682108]
[1642485572506,0.447,3177.0,3176.1,2.11270474]
[1642485572809,3.9836,3177.2,3176.2,3.22921448]
[1642485573004,3.9836,3177.2,3176.3,1.1259]
[1642485573205,1.3777946,3176.8,3176.3,1.13101581]
[1642485573506,1.3777946,3176.8,3176.4,0.00454739]
[1642485576938,1.3777946,3176.8,3176.5,0.1259]
[1642485577338,1.3777946,3176.8,3176.6,0.00341054]
[1642485577589,0.36212485,3177.1,3176.7,0.1259]
[1642485577792,0.36212485,3177.1,3176.7,0.12874212]
[1642485577992,0.36212485,3177.1,3176.8,0.0022737]
[1642485578993,3.46212485,3177.1,3176.8,0.0022737]
[1642485579990,2.68905622,3177.0,3176.5,0.00397897]
[1642485580191,2.68905622,3177.0,3176.1,0.1259]
[1642485580192,1.31256935,3176.9,3176.2,0.00568424]
[1642485580392,1.31256935,3176.9,3176.3,0.1259]
[1642485580795,1.31256935,3176.9,3176.4,0.00454739]
[1642485581431,1.31256935,3176.9,3176.2,0.00568424]
[1642485581631,0.1259,3176.8,3176.2,0.00568424]
[1642485582037,0.1259,3176.8,3176.0,0.00682108]
[1642485582236,18.877,3176.7,3176.0,0.00682108]
[1642485582437,0.1259,3176.6,3176.0,0.00682108]
[1642485582638,0.447,3176.5,3175.7,0.00852635]
[1642485583141,0.28435922,3176.5,3175.7,0.00852635]
[1642485583640,0.1259,3176.4,3175.7,0.00852635]
[1642485583838,0.447,3176.3,3175.7,0.00852635]
[1642485584039,22.3164,3176.2,3175.7,0.00852635]
[1642485584237,0.447,3176.1,3175.7,0.00852635]
[1642485584546,18.5559,3176.0,3175.7,0.00852635]
[1642485584742,1.77054617,3175.9,3175.7,0.00852635]
[1642485585003,0.1259,3175.8,3175.7,0.00852635]
[1642485585291,0.5729,3175.8,3175.7,0.00852635]
[1642485585890,0.447,3175.8,3175.7,0.00852635]
[1642485586291,0.447,3175.8,3175.0,0.01250532]
[1642485586994,0.447,3175.8,3174.9,0.01307374]
[1642485587196,0.447,3175.8,3175.0,0.1259]
[1642485587597,0.447,3175.8,3175.1,0.01193689]
[1642485587796,3.13605622,3175.8,3175.1,0.01193689]
[1642485588201,3.13605622,3175.8,3174.9,0.01307374]
[1642485588830,2.68905622,3175.7,3174.9,0.01307374]
[1642485589030,3.13605622,3175.7,3174.9,0.01307374]
[1642485590132,0.447,3175.7,3174.9,0.01307374]
[1642485592883,0.447,3175.7,3175.0,0.1259]
[1642485593287,0.447,3175.7,3175.1,0.01193689]
[1642485595987,0.447,3175.7,3174.9,0.01307374]
[1642485596228,3.31043796,3175.7,3175.0,0.1259]
[1642485596631,3.31043796,3175.7,3175.1,0.01193689]
[1642485597131,3.31043796,3175.7,3174.9,0.01307374]
[1642485598340,0.1259,3175.6,3174.9,0.01307374]
[1642485598538,3.31043796,3175.7,3174.9,0.01307374]
[1642485598738,3.31043796,3175.7,3174.8,0.01364217]
[1642485600183,3.31043796,3175.7,3174.7,8.96309442]
[1642485600385,0.1259,3175.6,3174.7,8.96309442]
[1642485600583,3.43633796,3175.7,3174.7,8.96309442]
[1642485600990,3.43633796,3175.7,3174.7,1.54309442]
[1642485601188,0.5729,3175.7,3174.7,1.54309442]
[1642485601590,0.5729,3175.7,3174.8,0.1259]
[1642485601788,0.5729,3175.7,3174.8,0.18176994]
[1642485602390,0.1259,3175.7,3174.8,0.1259]
[1642485602989,3.1,3175.8,3174.8,0.1259]
[1642485603835,3.1,3175.8,3174.7,1.51794528]
[1642485604035,3.1,3175.8,3174.8,0.35586994]
[1642485604635,3.1,3175.8,3174.8,0.05586994]
[1642485604836,1.28576745,3175.5,3174.8,0.05586994]
[1642485605038,1.28576745,3175.5,3174.9,0.1259]
[1642485606639,1.28576745,3175.5,3174.7,1.64384528]
[1642485607887,0.00341055,3175.4,3174.7,1.64384528]
[1642485608289,0.00284212,3175.3,3174.7,1.64384528]
[1642485608792,1.28576745,3175.5,3174.7,1.64384528]
[1642485608793,0.0022737,3175.2,3174.7,1.64384528]
[1642485609189,0.00170528,3175.1,3174.7,1.64384528]
[1642485609590,0.67272954,3174.9,3174.7,1.64384528]
[1642485609990,0.67272954,3174.9,3174.7,0.4259]
[1642485610393,0.67272954,3174.9,3174.7,0.1259]
[1642485612334,0.67272954,3174.9,3174.6,0.1259]
[1642485612940,0.1259,3176.0,3174.7,5.75]
[1642485613139,0.1259,3176.0,3175.3,1.38641003]
[1642485613338,0.0022737,3175.4,3175.3,1.98641003]
[1642485613540,0.0022737,3175.4,3175.3,2.11231003]
[1642485613739,0.00682108,3176.2,3175.3,0.7259]
[1642485614143,1.28679487,3175.4,3175.3,0.4259]
[1642485614539,1.28679487,3175.4,3175.3,0.1259]
[1642485614988,1.28679487,3175.4,3175.3,3.9259]
[1642485615182,1.28679487,3175.4,3175.3,4.9259]
[1642485615586,1.28679487,3175.4,3175.3,7.87504706]
[1642485615786,0.00682108,3176.2,3175.3,7.87504706]
[1642485615985,0.13272108,3176.2,3175.3,7.87504706]
[1642485616186,0.00625266,3176.1,3175.4,1.0]
[1642485616387,0.00625266,3176.1,3175.5,3.00986666]
[1642485616586,0.00568424,3176.0,3175.6,1.0]
[1642485616988,1.42109715,3175.8,3175.6,0.3]
[1642485617187,1.42109715,3175.8,3175.4,4.43517624]
[1642485617387,0.00397897,3175.7,3175.4,4.43517624]
[1642485617590,0.00397897,3175.7,3175.4,1.4259]
[1642485617790,0.00341054,3175.6,3175.4,1.4259]
[1642485617991,0.00341054,3175.6,3175.4,0.3]
[1642485618190,0.00284212,3175.5,3175.4,0.3]
[1642485618391,0.00284212,3175.5,3175.4,2.93234362]
[1642485618591,0.00284212,3175.5,3175.4,9.34239326]
[1642485618845,0.1259,3176.6,3175.5,3.95]
[1642485619052,0.1259,3176.6,3175.6,4.52476967]
[1642485619246,0.00397896,3176.2,3175.6,4.82476967]
[1642485619449,0.00397896,3176.2,3175.6,4.88076655]
[1642485619647,0.1259,3176.8,3175.6,1.81506811]
[1642485619648,0.00341054,3176.1,3175.6,1.81506811]
[1642485619847,0.00341054,3176.1,3175.7,0.5729]
[1642485620050,0.00284212,3176.0,3175.7,1.61069746]
[1642485620253,0.00284212,3176.0,3175.8,0.05599688]
[1642485620450,2.68978963,3176.5,3175.9,6.35655983]
[1642485620750,0.00511581,3176.4,3176.0,1.0]
[1642485620950,0.00511581,3176.4,3176.1,0.1259]
[1642485621156,1.41550894,3176.3,3176.0,1.047]
[1642485621352,1.41550894,3176.3,3176.0,0.747]
[1642485621550,0.00397896,3176.2,3176.0,1.80299688]
[1642485621751,0.00397896,3176.2,3176.1,3.6759]
[1642485621954,1.41096155,3176.3,3176.1,3.85]
[1642485622151,1.41096155,3176.3,3176.1,7.89741487]
[1642485622352,1.41096155,3176.3,3176.2,4.4]
[1642485622592,1.41096155,3176.3,3176.2,7.65834922]
[1642485622795,1.41550894,3176.3,3176.2,1.3]
[1642485623092,1.41550894,3176.3,3176.2,0.3]
[1642485623093,0.00454739,3176.3,3176.2,0.3]
[1642485623293,0.00454739,3176.3,3176.2,7.88376572]
[1642485623493,0.00454739,3176.3,3176.2,8.88376572]
[1642485623694,0.1259,3177.4,3176.3,4.8]
[1642485623894,5.55936564,3177.5,3176.8,0.29942987]
[1642485624094,0.00568423,3177.3,3176.8,0.29942987]
[1642485624499,0.00511581,3177.2,3176.8,0.29942987]
[1642485624894,0.00454738,3177.1,3176.8,0.29942987]
[1642485625095,1.52410781,3177.1,3176.4,0.3]
[1642485625295,0.00397896,3177.0,3176.3,0.65599688]
[1642485625496,0.00397896,3177.0,3176.3,0.35599688]
[1642485625696,0.00341054,3176.9,3176.3,0.35599688]
[1642485626095,0.00284211,3176.8,3176.3,0.35599688]
[1642485626534,4.20876885,3177.1,3176.3,0.35599688]
[1642485626535,0.00227369,3176.7,3176.3,0.35599688]
[1642485626736,2.68920842,3177.0,3176.5,5.75]
[1642485626935,2.68920842,3177.0,3176.8,1.30401248]
[1642485627140,2.68920842,3177.0,3176.9,4.2259]
[1642485627335,1.61236564,3177.6,3177.0,5.75]
[1642485627540,1.61236564,3177.6,3177.1,4.74427966]
[1642485627737,1.61236564,3177.6,3177.1,2.92299207]
[1642485627738,1.14606564,3177.6,3177.1,2.92299207]
[1642485627938,2.4194686,3177.9,3177.2,0.3]
[1642485628138,2.4194686,3177.9,3177.3,0.1258]
[1642485628139,1.16421962,3177.5,3177.3,0.1258]
[1642485628340,1.16421962,3177.5,3177.3,0.18218207]
[1642485628539,1.16421962,3177.5,3177.4,5.05638207]
[1642485628739,1.16421962,3177.5,3177.4,5.18218207]
[1642485628940,0.00456701,3177.5,3177.4,6.78218207]
[1642485629241,0.00454739,3177.5,3177.4,8.34778207]
[1642485630112,3.92104739,3178.7,3177.5,5.2]
[1642485630301,1.41889305,3177.7,3177.4,3.13328207]
[1642485630500,1.41889305,3177.7,3177.4,1.06118207]
[1642485630699,1.41889305,3177.7,3177.5,1.0]
[1642485630901,1.41889305,3177.7,3177.4,1.0048]
[1642485631300,1.41889305,3177.7,3177.4,1.06118207]
[1642485632099,1.41889305,3177.7,3177.4,1.78218207]
[1642485632402,1.41889305,3177.7,3177.4,1.65638207]
[1642485633602,1.41889305,3177.7,3177.4,0.35638207]
[1642485634835,1.41545851,3177.7,3177.4,0.35638207]
[1642485636439,0.13205266,3178.6,3177.4,0.35638207]
[1642485636641,0.00625266,3178.6,3177.5,0.1258]
[1642485636845,0.00568423,3178.5,3177.5,0.1258]
[1642485637043,0.00568423,3178.5,3177.6,0.05638207]
[1642485637246,0.00511581,3178.4,3177.6,0.05638207]
[1642485637691,1.42751251,3178.3,3177.6,0.05638207]
[1642485638088,0.00397896,3178.2,3177.6,0.05638207]
[1642485638490,0.00341054,3178.1,3177.6,0.05638207]
[1642485638888,0.00284212,3178.0,3177.6,0.05638207]
[1642485639289,1.1239666,3177.7,3177.6,0.05638207]
[1642485639690,1.12510345,3177.7,3177.6,0.05638207]
[1642485640294,0.00113685,3177.7,3177.6,0.05638207]
[1642485640491,0.00113685,3177.7,3177.6,5.45638207]
[1642485640691,1.59630563,3178.5,3178.0,1.37412811]
[1642485640892,1.59630563,3178.5,3178.0,1.67412811]
[1642485641095,1.59630563,3178.5,3178.0,0.6]
[1642485641096,0.00397896,3178.4,3178.0,0.6]
[1642485641337,1.21003287,3178.1,3177.9,0.1258]
[1642485641538,0.00341054,3178.3,3178.0,5.75]
[1642485641738,1.55506475,3178.4,3178.1,0.05651073]
[1642485642136,0.00341054,3178.3,3178.1,0.05651073]
[1642485642542,0.00284211,3178.2,3178.1,2.50651073]
[1642485642740,0.00284211,3178.2,3178.1,0.84279833]